lending/lending_fUSD_20250501
["ID","MTS","AMOUNT","RATE_DAILY","PERIOD"]
[359517227,1746087045876,-1000.0,0.00044033,14]
[359517229,1746087045891,-150.0,0.00044082,2]
[359517232,1746087045907,-2000.0,0.00044087,120]
[359517234,1746087045923,-150.0,0.00044108,2]
[359517237,1746087045941,-450.0,0.00044109,2]
[359517240,1746087045959,-450.0,0.00044109,2]
[359517242,1746087045975,-450.0,0.00044109,2]
[359517245,1746087045991,-450.0,0.00044109,2]
[359517247,1746087046007,-450.0,0.00044109,2]
[359517250,1746087046022,-310.79999712,0.00044109,20]
[359517252,1746087046037,-1000.0,0.00044126,14]
[359517255,1746087046053,-2405.1280112,0.00044176,50]
[359517258,1746087046069,-150.0,0.00044201,2]
[359517260,1746087046085,-150.0,0.00044239,2]
[359517263,1746087046100,-150.0,0.00044239,2]
[359517265,1746087046115,-150.0,0.0004425,2]
[359517268,1746087046130,-150.0,0.00044277,2]
[359517270,1746087046146,-299.43261,0.00044295,30]
[359517273,1746087046161,-21089.98,0.000443,2]
[359517276,1746087046176,-21089.98,0.000443,2]
[359517279,1746087046192,-7029.99,0.000443,2]
[359517283,1746087046208,-7029.99,0.000443,2]
[359517286,1746087046225,-150.0,0.00044311,2]
[359517289,1746087046240,-150.0,0.00044319,2]
[359517291,1746087046255,-150.0,0.0004434,2]
[359517294,1746087046271,-2183.378,0.00044344,2]
[359517296,1746087046286,-4003.0,0.00044344,2]
[359517299,1746087046301,-153.0,0.00044344,2]
[359517301,1746087046316,-878.0,0.00044344,2]
[359517304,1746087046331,-876.0,0.00044344,2]
[359517306,1746087046346,-150.0,0.00044348,2]
[359517309,1746087046361,-150.0,0.00044349,2]
[359517311,1746087046375,-150.0,0.00044358,2]
[359517314,1746087046391,-151.0,0.0004437,14]
[359517317,1746087046406,-151.0,0.0004437,14]
[359517319,1746087046420,-1000.0,0.00044376,14]
[359517321,1746087046435,-450.0,0.00044383,2]
[359517324,1746087046453,-450.0,0.00044383,2]
[359517326,1746087046470,-450.0,0.00044383,2]
[359517329,1746087046485,-450.0,0.00044383,2]
[359517331,1746087046501,-450.0,0.00044383,2]
[359517333,1746087046516,-150.0,0.00044395,2]
[359517336,1746087046533,-150.0,0.00044396,14]
[359517339,1746087046549,-1650.56557561,0.00044397,120]
[359517341,1746087046564,-500.0,0.00044399,31]
[359517343,1746087046574,-500.0,0.00044399,31]
[359517366,1746087046584,-1699.57,0.00044399,120]
[359517370,1746087046826,-1780.8076,0.000444,2]
[359517372,1746087046838,-92007.5872,0.000444,2]
[359517374,1746087046848,-21089.98,0.000444,2]
[359517376,1746087046857,-7029.99,0.000444,2]
[359517378,1746087046866,-150.0,0.00044419,2]
[359517380,1746087046875,-1316.0,0.00044464,30]
[359517382,1746087046884,-400.0,0.0004447,3]
[359517383,1746087046894,-700.0,0.0004447,3]
[359517386,1746087046903,-150.5,0.0004447,120]
[359517388,1746087046912,-212.0,0.0004448,30]
[359517390,1746087046921,-150.5,0.0004448,120]
[359517392,1746087046931,-731.52572607,0.00044489,120]
[359517394,1746087046941,-500.0,0.00044489,31]
[359517396,1746087046951,-150.0,0.00044489,2]
[359517398,1746087046961,-629.90253198,0.00044489,2]
[359517400,1746087046970,-629.90253198,0.00044489,2]
[359517402,1746087046980,-150.5,0.0004449,120]
[359517404,1746087046989,-25765.101093,0.0004449,2]
[359517406,1746087046998,-233191.8593795,0.0004449,2]
[359517408,1746087047007,-37445.4201246,0.0004449,2]
[359517410,1746087047017,-159.0,0.00044495,14]
[359517412,1746087047025,-265.74835313,0.00044495,14]
[359517414,1746087047035,-299.43261,0.00044495,30]
[359517416,1746087047044,-500.0,0.00044496,2]
[359517418,1746087047053,-500.0,0.00044496,2]
[359517420,1746087047062,-500.0,0.00044496,31]
[359517421,1746087047072,-500.0,0.00044496,31]
[359517423,1746087047081,-557.14722446,0.00044496,31]
[359517425,1746087047091,-500.0,0.00044496,31]
[359517428,1746087047100,-1000.0,0.00044499,120]
[359517430,1746087047110,-151.0,0.00044499,32]
[359517432,1746087047120,-151.0,0.00044499,32]
[359517433,1746087047129,-151.0,0.00044499,32]
[359517435,1746087047139,-200.0,0.00044499,32]
[359517438,1746087047149,-151.0,0.00044499,32]
[359517439,1746087047158,-151.0,0.00044499,32]
[359517442,1746087047167,-193.73484558,0.00044499,32]
[359517443,1746087047177,-207.4,0.00044499,32]
[359517445,1746087047186,-151.0,0.00044499,32]
[359517447,1746087047195,-151.0,0.00044499,32]
[359517449,1746087047204,-215.0738,0.00044499,32]
[359517450,1746087047213,-223.0315306,0.00044499,32]
[359517451,1746087047222,-151.0,0.00044499,32]
[359517452,1746087047231,-231.28369723,0.00044499,32]
[359517453,1746087047240,-151.0,0.00044499,32]
[359517454,1746087047249,-239.84119403,0.00044499,32]
[359517455,1746087047258,-301.22395042,0.00044499,32]
[359517456,1746087047267,-248.71531821,0.00044499,32]
[359517457,1746087047276,-257.91778498,0.00044499,32]
[359517458,1746087047285,-267.46074303,0.00044499,32]
[359517459,1746087047294,-277.35679052,0.00044499,32]
[359517460,1746087047303,-287.61899177,0.00044499,32]
[359517461,1746087047312,-298.26089446,0.00044499,32]
[359517462,1746087047320,-309.29654756,0.00044499,32]
[359517463,1746087047329,-320.74051982,0.00044499,32]
[359517464,1746087047338,-332.60791905,0.00044499,32]
[359517465,1746087047347,-344.91441206,0.00044499,32]
[359517467,1746087047357,-357.6762453,0.00044499,32]
[359517469,1746087047367,-370.91026638,0.00044499,32]
[359517471,1746087047376,-384.63394623,0.00044499,32]
[359517473,1746087047385,-398.86540225,0.00044499,32]
[359517475,1746087047394,-500.0,0.00044499,120]
[359517477,1746087047404,-33284.16771698,0.000445,30]
[359517479,1746087047413,-456.96346929,0.000445,2]
[359517481,1746087047423,-35149.97,0.000445,2]
[359517483,1746087047433,-500.0,0.000445,32]
[359517485,1746087047442,-1000.0,0.000445,120]
[359517487,1746087047452,-200.0,0.000445,7]
[359517489,1746087047462,-21089.98,0.000445,2]
[359517491,1746087047471,-200.0,0.000445,7]
[359517493,1746087047481,-7029.99,0.000445,2]
[359517495,1746087047490,-5690.15,0.000445,14]
[359517497,1746087047503,-200.0,0.000445,7]
[359517499,1746087047512,-188398.95801858,0.0004451,2]
[359517549,1746087048006,-429.55149979,0.0004451,2]
[359517729,1746087049915,-251.05216898,0.00025607,2]
[359517731,1746087049926,-2122.069093,0.0004451,2]
[359517734,1746087049945,-2875.49745543,0.0004451,2]
[359517736,1746087049954,-31124.1518839,0.0004451,2]
[359517738,1746087049964,-150.0,0.0004452,2]
[359517740,1746087049973,-21401.1965167,0.00044522,2]
[359517742,1746087049982,-500.0,0.00044529,31]
[359517744,1746087049992,-1000.0,0.00044538,14]
[359517746,1746087050001,-500.0,0.00044539,2]
[359517748,1746087050012,-315.2097698,0.00044539,31]
[359517750,1746087050021,-500.0,0.00044539,31]
[359517752,1746087050031,-21048.23487012,0.0004454,30]
[359517764,1746087050132,-215.0,0.00040049,2]
[359517766,1746087050142,-629.90253198,0.00044489,2]
[359517768,1746087050151,-7678.70046802,0.0004454,30]
[359517770,1746087050163,-2720.48355954,0.0004454,30]
[359517772,1746087050175,-7100.793891,0.0004454,30]
[359517774,1746087050188,-1406.45153394,0.0004454,30]
[359524162,1746087143850,1450.7694,0.0001928,2]
[359524163,1746087367349,-241.011312,0.00019786,2]
[359524164,1746087471445,250.0,0.00017,2]
[359524165,1746087472521,300.0,0.00019,2]
[359524167,1746087742300,220.28114263,0.00018905,2]
[359524168,1746087907942,1779.71885737,0.0002,2]
[359524169,1746087907967,2000.0,0.0002,2]
[359524170,1746087907990,2000.0,0.0002,2]
[359524171,1746087908012,2000.0,0.0002,2]
[359524172,1746087908037,2000.0,0.0002,2]
[359524173,1746087908061,2000.0,0.0002,2]
[359524174,1746087908086,2000.0,0.0002,2]
[359524175,1746087908109,2000.0,0.0002,2]
[359524176,1746087908137,2000.0,0.0002,2]
[359524177,1746087908171,2000.0,0.0002,2]
[359524178,1746087908200,2000.0,0.0002,2]
[359524179,1746087908227,2000.0,0.0002,2]
[359524180,1746087908252,2000.0,0.0002,2]
[359524181,1746087908283,2000.0,0.0002,2]
[359524182,1746087908321,2000.0,0.0002,2]
[359524183,1746087908348,2000.0,0.0002,2]
[359524184,1746087908372,2000.0,0.0002,2]
[359524207,1746088126060,220.28114263,0.00019218,2]
[359524248,1746088231988,-241.011312,0.000198,2]
[359524250,1746088231998,-374.84427001,0.00019899,2]
[359524252,1746088232010,-825.15572999,0.00019899,2]
[359524254,1746088232020,-189.99882472,0.000199,2]
[359524256,1746088232029,-157.73745098,0.000199,3]
[359524258,1746088232039,-470.94922212,0.000199,2]
[359524260,1746088232050,-413.4455413,0.000199,2]
[359524284,1746088237380,-8091.51375785,0.000199,2]
[359524285,1746088237487,-268.20058986,0.000199,2]
[359524286,1746088237495,-157.55048229,0.000199,2]
[359524287,1746088237504,-184.48511101,0.000199,2]
[359524288,1746088237513,-337.59715316,0.00019973,2]
[359524289,1746088237522,-202.0,0.00019979,2]
[359524290,1746088237532,-28114.76499381,0.0001998,2]
[359524291,1746088237543,-843.16682932,0.0001998,2]
[359524292,1746088237592,-10612.37906445,0.0001998,2]
[359524293,1746088237602,-500.0,0.00019998,2]
[359524294,1746088237612,-150.0,0.00019998,2]
[359524295,1746088237621,-500.0,0.00019998,2]
[359524296,1746088237630,-500.0,0.00019998,2]
[359524297,1746088237639,-500.0,0.00019998,2]
[359524298,1746088237647,-500.0,0.00019998,2]
[359524299,1746088237655,-500.0,0.00019998,2]
[359524300,1746088237663,-500.0,0.00019998,2]
[359524301,1746088237671,-500.0,0.00019998,2]
[359524302,1746088237680,-500.0,0.00019998,2]
[359524303,1746088237689,-500.0,0.00019998,2]
[359524304,1746088237699,-500.0,0.00019998,2]
[359524305,1746088237708,-500.0,0.00019998,2]
[359524306,1746088237718,-500.0,0.00019998,2]
[359524307,1746088237728,-500.0,0.00019998,2]
[359524308,1746088237737,-500.0,0.00019998,2]
[359524309,1746088237746,-500.0,0.00019998,2]
[359524310,1746088237755,-500.0,0.00019998,2]
[359524311,1746088237764,-500.0,0.00019998,2]
[359524312,1746088237773,-500.0,0.00019998,2]
[359524313,1746088237782,-500.0,0.00019998,2]
[359524314,1746088237792,-339.17291061,0.00019998,2]
[359524315,1746088237801,-500.0,0.00019998,2]
[359524316,1746088237810,-500.0,0.00019998,2]
[359524317,1746088237819,-500.0,0.00019998,2]
[359524318,1746088237828,-500.0,0.00019998,2]
[359524319,1746088237838,-500.0,0.00019998,2]
[359524320,1746088237849,-500.0,0.00019998,2]
[359524321,1746088237859,-500.0,0.00019998,2]
[359524322,1746088237868,-500.0,0.00019998,2]
[359524323,1746088237878,-500.0,0.00019998,2]
[359524324,1746088237887,-500.0,0.00019998,2]
[359524325,1746088237896,-500.0,0.00019998,2]
[359524326,1746088237907,-500.0,0.00019998,2]
[359524327,1746088237916,-500.0,0.00019998,2]
[359524329,1746088237926,-500.0,0.00019998,2]
[359524330,1746088237935,-500.0,0.00019998,2]
[359524331,1746088237944,-500.0,0.00019998,2]
[359524332,1746088237954,-500.0,0.00019998,2]
[359524333,1746088238125,-500.0,0.00019998,2]
[359524334,1746088238152,-500.0,0.00019998,2]
[359524335,1746088238162,-300.0,0.00019998,2]
[359524336,1746088238171,-500.0,0.00019998,2]
[359524337,1746088238181,-500.0,0.00019998,2]
[359524338,1746088238190,-500.0,0.00019998,2]
[359524339,1746088238199,-500.0,0.00019998,2]
[359524340,1746088238209,-500.0,0.00019998,2]
[359524341,1746088238219,-500.0,0.00019998,2]
[359524342,1746088238228,-54593.46258071,0.0002,2]
[359524343,1746088238240,-4402296.59220571,0.0002,2]
[359524344,1746088238253,-582.68101033,0.0002,2]
[359524345,1746088239597,-558.89350208,0.0002,2]
[359524346,1746088239609,-1253.07843735,0.0002,2]
[359524347,1746088239652,-1600.66583222,0.0002,2]
[359524348,1746088239708,-454.93304998,0.0002,2]
[359524349,1746088239839,-21172.64832127,0.0002,2]
[359524351,1746088239922,-660.0,0.0002,2]
[359524352,1746088239933,-21765.4854165,0.0002,2]
[359524355,1746088240055,-304551.55122879,0.0002,2]
[359524438,1746088245396,-1554.76,0.000199,2]
[359524439,1746088245557,-318.8803487,0.000199,2]
[359524440,1746088245568,-310.0594,0.000199,2]
[359524441,1746088245772,-15.45705502,0.000199,2]
[359524442,1746088245782,-4491.97653214,0.0002,2]
[359524453,1746088245895,-364.3572772,0.0002,2]
[359524465,1746088383224,218.92006973,0.00019,8]
[359524466,1746088422228,1000.0,0.00032,60]
[359524471,1746088693951,359.65006695,0.00032876,60]
[359524474,1746088742103,1825.43049055,0.00022624,7]
[359524475,1746088906123,1764.58280753,0.00022624,7]
[359524477,1746089060768,796.44,0.00019255,2]
[359524479,1746089062576,1705.76338062,0.00022624,7]
[359524480,1746089221273,1648.90460126,0.00022624,7]
[359524485,1746089255410,169.04,0.00019178,2]
[359524486,1746089290045,250.0,0.00017,2]
[359524487,1746089291689,300.0,0.00019,2]
[359524491,1746089313401,152.0,0.00016938,2]
[359524501,1746089378019,1593.94111455,0.00022624,7]
[359524508,1746089431651,-318.35232145,0.000196,2]
[359524509,1746089431697,-490.99967855,0.000196,2]
[359524510,1746089431720,-338.53820879,0.0001988,2]
[359524511,1746089431747,-1200.0,0.00019899,2]
[359524512,1746089431771,-11211.992,0.000199,2]
[359524513,1746089431794,-237.9239797,0.000199,2]
[359524514,1746089431817,-171.19106511,0.000199,2]
[359524515,1746089431839,-170.99894228,0.000199,2]
[359524516,1746089431862,-6270.5633,0.000199,2]
[359524517,1746089431886,-408.49388136,0.000199,2]
[359524518,1746089431907,-2951.81564044,0.000199,2]
[359524519,1746089431929,-187.05735636,0.000199,2]
[359524520,1746089431951,-516.55633356,0.00019973,2]
[359524521,1746089431972,-291.86484364,0.00019973,2]
[359524522,1746089431993,-314.99020137,0.00019973,2]
[359524523,1746089432015,-500.0,0.00019973,2]
[359524526,1746089432039,-408.49388127,0.00019985,2]
[359524529,1746089432060,-172.5032771,0.00019985,2]
[359524533,1746089432087,-500.0,0.00019999,2]
[359524538,1746089432115,-413.91729106,0.00019999,2]
[359524543,1746089432142,-500.0,0.00019999,2]
[359524547,1746089432176,-500.0,0.00019999,2]
[359524551,1746089432203,-500.0,0.00019999,2]
[359524555,1746089432232,-500.0,0.00019999,2]
[359524559,1746089432259,-500.0,0.00019999,2]
[359524591,1746089432552,-109819.89011941,0.0002,2]
[359524643,1746089433045,-451.3,0.0002,2]
[359524645,1746089433057,-15422.6634235,0.0002,2]
[359524648,1746089433069,-3610.19850992,0.0002,2]
[359524650,1746089433080,-10538.161073,0.0002,2]
[359524652,1746089433092,-2416.38369393,0.0002,2]
[359524878,1746089437856,-1122.3468552,0.0002,2]
[359524879,1746089437915,-4402296.59220571,0.0002,2]
[359524960,1746089445880,-993.20151938,0.000199,2]
[359524961,1746089445890,-348.94438892,0.000199,2]
[359524962,1746089445899,-73.65219588,0.0002,2]
[359524963,1746089445910,-8882.5,0.0002,2]
[359524968,1746089446741,-1133.84439835,0.0002,2]
[359524969,1746089446750,-503417.65432963,0.0002,2]
[359524970,1746089446764,-3933.38051244,0.0002,2]
[359524971,1746089499504,-1593.94111455,0.00021762,5]
[359524972,1746089502173,-348.94438891,0.00019908,2]
[359524973,1746089502200,-348.94438891,0.00019916,2]
[359524974,1746089502228,-348.94438891,0.00019923,2]
[359524975,1746089502257,-348.94438891,0.00019931,2]
[359524976,1746089502293,-348.94438891,0.00019939,2]
[359524977,1746089502323,-348.94438891,0.00019947,2]
[359524978,1746089502352,-348.94438891,0.00019954,2]
[359524979,1746089502383,-348.94438891,0.00019962,2]
[359524980,1746089502412,-163.26348333,0.0001997,2]
[359524981,1746089502442,-164.84650931,0.0001997,2]
[359524982,1746089502474,-348.94438891,0.0001997,2]
[359524983,1746089502503,-500.77379964,0.00019973,2]
[359524984,1746089502532,-550.0,0.00019999,2]
[359524985,1746089502565,-491.01437173,0.00019999,2]
[359524986,1746089502818,-1531041.0246716,0.0002,2]
[359524987,1746089524558,200.1992586,0.0003,30]
[359524988,1746089533995,1487.67837358,0.00021762,5]
[359524989,1746089534284,1487.67837358,0.00022624,7]
[359524990,1746089666109,299.99999901,0.000328,120]
[359524991,1746089692524,5103.71490914,0.00021762,5]
[359524992,1746089754192,-1056.434684,0.0001987,2]
[359524993,1746089874020,-393.22347008,0.00019873,2]
[359524994,1746090205089,1146.34,0.00017421,2]
[359524995,1746090258966,169.04,0.00019178,2]
[359524997,1746090351402,500.0,0.00019276,2]
[359524998,1746090354482,151.99,0.00019276,2]
[359524999,1746090355240,151.99,0.00019295,2]
[359525000,1746090355439,151.99,0.00019314,2]
[359525001,1746090401130,-540.0,0.00019327,2]
[359525002,1746090417349,-1057.0,0.00019327,2]
[359525005,1746090459893,310.0,0.00019209,2]
[359525006,1746090459919,690.0,0.00019209,2]
[359525007,1746090479389,1056.434684,0.0001923,2]
[359525008,1746090482443,150.0,0.00019315,2]
[359525012,1746090556014,250.0,0.00019048,2]
[359525013,1746090561517,308.5,0.00019048,2]
[359525018,1746090583371,200.0,0.00019048,2]
[359525019,1746090605178,247.2,0.00019048,2]
[359525020,1746090617979,23900.0,0.00019048,2]
[359525023,1746090631914,-261.74,0.00019327,2]
[359525024,1746090631925,-250.0,0.00019328,2]
[359525025,1746090631935,-200.0,0.00019328,2]
[359525026,1746090631944,-200.0,0.0001933,2]
[359525027,1746090631954,-146.70493665,0.00019333,2]
[359525028,1746090632178,-3.29506335,0.00019333,2]
[359525029,1746090632188,-151.99,0.00019334,2]
[359525030,1746090632198,-200.0,0.00019344,2]
[359525031,1746090632209,-151.99,0.00019353,2]
[359525032,1746090632218,-151.99,0.00019372,2]
[359525036,1746090632451,-201.07188704,0.00019441,2]
[359525041,1746090637807,-2.94811296,0.00019441,2]
[359525042,1746090637817,-415.44706303,0.00019445,2]
[359525043,1746090637828,-152.52,0.00019545,2]
[359525044,1746090637838,-415.44706301,0.00019673,2]
[359525045,1746090637847,-1146.34,0.00019685,2]
[359525046,1746090637857,-500.0,0.0001976,2]
[359525047,1746090637867,-209.95,0.0001989,2]
[359525048,1746090637876,-1200.0,0.0001989,2]
[359525049,1746090637887,-200.0,0.00019891,2]
[359525050,1746090637896,-194.596614,0.00019891,2]
[359525051,1746090637907,-305.403386,0.00019891,2]
[359525052,1746090637917,-388.56045218,0.00019891,2]
[359525053,1746090637927,-187.15279199,0.00019891,2]
[359525054,1746090637937,-300.0,0.00019897,2]
[359525055,1746090637946,-300.0,0.00019898,2]
[359525056,1746090637955,-2106.1887,0.000199,2]
[359525057,1746090637965,-442.83263861,0.000199,2]
[359525058,1746090637975,-171.19106511,0.000199,2]
[359525059,1746090637984,-415.44706301,0.000199,2]
[359525060,1746090637993,-164.8465093,0.000199,2]
[359525061,1746090638002,-241.55673044,0.0001997,2]
[359525062,1746090638015,-500.0,0.00019973,2]
[359525063,1746090638024,-512.48227853,0.00019973,2]
[359525064,1746090638034,-500.0,0.00019973,2]
[359525065,1746090638043,-430.50846022,0.00019973,2]
[359525066,1746090638054,-552.49428965,0.00019973,2]
[359525067,1746090638063,-500.0,0.00019973,2]
[359525068,1746090638073,-500.0,0.00019973,2]
[359525069,1746090638082,-500.0,0.00019973,2]
[359525071,1746090638092,-503.10346158,0.00019973,2]
[359525072,1746090638101,-500.0,0.00019973,2]
[359525073,1746090638110,-500.0,0.00019973,2]
[359525074,1746090638119,-158.92,0.0001999,2]
[359525075,1746090638128,-158.92,0.0001999,2]
[359525076,1746090638139,-158.92,0.0001999,2]
[359525077,1746090638148,-158.92,0.0001999,2]
[359525078,1746090638157,-158.92,0.0001999,2]
[359525079,1746090638167,-158.92,0.0001999,2]
[359525080,1746090638177,-158.92,0.0001999,2]
[359525081,1746090638187,-1063.528,0.00019999,2]
[359525082,1746090638196,-170.394,0.00019999,2]
[359525083,1746090638206,-500.0,0.00019999,2]
[359525084,1746090638216,-500.0,0.00019999,2]
[359525085,1746090638226,-500.0,0.00019999,2]
[359525087,1746090638236,-500.0,0.00019999,2]
[359525088,1746090638245,-500.0,0.00019999,2]
[359525090,1746090638254,-500.0,0.00019999,2]
[359525092,1746090638263,-500.0,0.00019999,2]
[359525094,1746090638272,-242.81931516,0.00019999,2]
[359525096,1746090638282,-500.0,0.00019999,2]
[359525098,1746090638291,-500.0,0.00019999,2]
[359525100,1746090638300,-500.0,0.00019999,2]
[359525102,1746090638309,-500.0,0.00019999,2]
[359525104,1746090638318,-500.0,0.00019999,2]
[359525106,1746090638327,-550.0,0.00019999,2]
[359525108,1746090638336,-15878.43260748,0.0002,2]
[359525110,1746090638348,-1383.1460726,0.0002,2]
[359525114,1746090638370,-462.86720346,0.0002,2]
[359525116,1746090638381,-1756.27846413,0.0002,2]
[359525119,1746090638404,-1279.52986034,0.0002,2]
[359525210,1746090640084,-370.61301976,0.0002,2]
[359525211,1746090640102,-477.60483963,0.0002,2]
[359525212,1746090640115,-1209443.49779551,0.0002,2]
[359525213,1746090640125,-680.23586531,0.0002,2]
[359525214,1746090640136,-1350.06,0.00020117,2]
[359525215,1746090640146,-258.52,0.00020191,2]
[359525216,1746090640155,-200.0,0.00020353,2]
[359525217,1746090640167,-85420.26911659,0.00020541,2]
[359525218,1746090640176,-812.61,0.00020551,2]
[359525219,1746090640187,-259.77,0.00020764,2]
[359525220,1746090640198,-1000.0,0.00020892,2]
[359525221,1746090640209,-4933.59107889,0.000209,4]
[359525222,1746090640221,-350.0,0.00021,2]
[359525223,1746090640232,-300.62,0.00021017,2]
[359525224,1746090640241,-115232.0435771,0.00021031,2]
[359525225,1746090640251,-301.08,0.00021031,2]
[359525226,1746090640262,-304.87,0.00021031,2]
[359525227,1746090640273,-302.83,0.00021103,2]
[359525228,1746090640283,-300.91,0.00021103,2]
[359525229,1746090640293,-585.13,0.00021173,2]
[359525230,1746090640302,-150.0,0.00021173,2]
[359525231,1746090640312,-250.0,0.0002126,2]
[359525232,1746090640322,-200.0,0.0002126,2]
[359525233,1746090640331,-250.0,0.0002126,2]
[359525234,1746090640341,-200.0,0.0002126,2]
[359525235,1746090640351,-5122.4,0.0002137,2]
[359525236,1746090640361,-970.49,0.000216,2]
[359525237,1746090640371,-1000.0,0.00021644,2]
[359525238,1746090640380,-420.0,0.00021668,2]
[359525239,1746090640391,-420.0,0.00021669,2]
[359525240,1746090640401,-10996.11931678,0.00021756,2]
[359525241,1746090640411,-29999.99,0.00021757,2]
[359525242,1746090640421,-195.87113196,0.00021758,2]
[359525243,1746090640431,-13361.5027854,0.00021758,2]
[359525244,1746090640443,-206765.5717348,0.00021758,2]
[359525245,1746090640453,-4347.5438646,0.00021758,2]
[359525246,1746090640463,-566.8427407,0.00021758,2]
[359525247,1746090640474,-18467.6810311,0.00021758,2]
[359525248,1746090640484,-181.7206823,0.00021758,2]
[359525249,1746090640495,-4933.59107884,0.00021762,5]
[359525250,1746090640505,-1680.0,0.00021765,2]
[359525251,1746090640514,-501.61179285,0.00021773,2]
[359525252,1746090640525,-500.0,0.00021773,2]
[359525253,1746090640534,-500.0,0.00021773,2]
[359525254,1746090640544,-500.0,0.00021773,2]
[359525255,1746090640553,-500.0,0.00021773,2]
[359525256,1746090640564,-500.0,0.00021773,2]
[359525257,1746090640574,-500.0,0.00021773,2]
[359525258,1746090640585,-500.0,0.00021773,2]
[359525259,1746090640595,-500.0,0.00021773,2]
[359525260,1746090640605,-500.0,0.00021773,2]
[359525261,1746090640619,-474.51724359,0.00021773,2]
[359525262,1746090640628,-501.06029694,0.00021773,2]
[359525263,1746090640638,-500.0,0.00021773,2]
[359525264,1746090640648,-500.0,0.00021773,2]
[359525265,1746090640658,-500.68481339,0.00021773,2]
[359525266,1746090640667,-500.0,0.00021773,2]
[359525267,1746090640677,-500.0,0.00021773,2]
[359525268,1746090640688,-500.0,0.00021773,2]
[359525269,1746090640697,-500.0,0.00021773,2]
[359525270,1746090640707,-501.41990566,0.00021773,2]
[359525271,1746090640716,-502.84836243,0.00021773,2]
[359525272,1746090640726,-508.28233105,0.00021773,2]
[359525273,1746090640736,-500.0,0.00021773,2]
[359525274,1746090640745,-504.94248061,0.00021773,2]
[359525275,1746090640755,-500.0,0.00021773,2]
[359525276,1746090640765,-511.2749024,0.00021773,2]
[359525277,1746090640774,-7631.19745149,0.0002187,2]
[359525278,1746090640784,-150.0,0.00021917,2]
[359525279,1746090640794,-259.77,0.00021918,2]
[359525280,1746090640804,-1146.34,0.00021949,2]
[359525281,1746090640813,-304.17,0.00022003,2]
[359525282,1746090640822,-301.74,0.00022003,2]
[359525283,1746090640831,-305.78,0.00022003,2]
[359525284,1746090640841,-303.01,0.00022003,2]
[359525285,1746090640851,-305.44,0.00022003,2]
[359525286,1746090640860,-305.95,0.00022003,2]
[359525287,1746090640870,-301.3,0.00022019,2]
[359525288,1746090640879,-304.86,0.00022019,2]
[359525289,1746090640888,-305.79,0.00022019,2]
[359525290,1746090640898,-304.62,0.00022019,2]
[359525291,1746090640907,-305.09,0.00022019,2]
[359525292,1746090640918,-302.36,0.00022019,2]
[359525293,1746090640927,-300.1,0.00022019,2]
[359525294,1746090640937,-301.39,0.00022031,2]
[359525295,1746090640946,-302.16,0.00022103,2]
[359525296,1746090640955,-304.95,0.00022103,2]
[359525297,1746090640964,-305.56,0.00022103,2]
[359525298,1746090640974,-449.99525485,0.00022103,2]
[359525299,1746090640983,-442.8326386,0.00022344,2]
[359525300,1746090640992,-300.0,0.00022543,2]
[359525301,1746090641002,-4933.59107884,0.00022624,7]